{"text_format":"1","workbook":"xlsx","n_sheets":3,"sheets":["List_A","List_B","List_C"],"not_rendered":{"charts":0,"images":0,"macros":1,"external_links":0,"defined_names":0,"comments":0,"pivot_tables":0},"unopened":[],"bounds":{"document_bytes":16777216,"sheet_cells":100000,"rows_first":2000,"rows_last":500,"rows_between":2000,"halvings":0,"cell_chars":16384,"cell_head_chars":4096},"cells_cut":0,"cells_raw":0,"read":"whole","date_system":"1900"}

{"sheet":"List_A","index":0,"n_rows":17,"n_cols":1,"rows_kept":17,"cut":false,"hidden":false,"merged":[]}
["Only A1"]
["Only A2"]
["Only A3"]
["Only A4"]
["Only A5"]
["Comon1"]
["Comon2"]
["Only A6"]
["Only A7"]
["Comon3"]
["Only B7"]
["Only A9"]
["Only A10"]
["Comon4"]
["Only A11"]
["Only A12"]
["Only A13"]

{"sheet":"List_B","index":1,"n_rows":21,"n_cols":4,"rows_kept":21,"cut":false,"hidden":false,"merged":[]}
["Only B1",null,null,{"$f":"MATCH(A1,List_A!$A$1:$A$17,0)","v":{"$error":"#N/A"}}]
["Only B2",null,null,{"$f":"MATCH(A2,List_A!$A$1:$A$17,0)","v":{"$error":"#N/A"}}]
["Only B3",null,null,{"$f":"MATCH(A3,List_A!$A$1:$A$17,0)","v":{"$error":"#N/A"}}]
["Comon1",null,null,{"$f":"MATCH(A4,List_A!$A$1:$A$17,0)","v":6}]
["Comon2",null,null,{"$f":"MATCH(A5,List_A!$A$1:$A$17,0)","v":7}]
["Only B4",null,null,{"$f":"MATCH(A6,List_A!$A$1:$A$17,0)","v":{"$error":"#N/A"}}]
["Only B5",null,null,{"$f":"MATCH(A7,List_A!$A$1:$A$17,0)","v":{"$error":"#N/A"}}]
["Only A3",null,null,{"$f":"MATCH(A8,List_A!$A$1:$A$17,0)","v":3}]
["Only B7",null,null,{"$f":"MATCH(A9,List_A!$A$1:$A$17,0)","v":11}]
["Comon3",null,null,{"$f":"MATCH(A10,List_A!$A$1:$A$17,0)","v":10}]
["Only B8",null,null,{"$f":"MATCH(A11,List_A!$A$1:$A$17,0)","v":{"$error":"#N/A"}}]
["Only B9",null,null,{"$f":"MATCH(A12,List_A!$A$1:$A$17,0)","v":{"$error":"#N/A"}}]
["Only B10",null,null,{"$f":"MATCH(A13,List_A!$A$1:$A$17,0)","v":{"$error":"#N/A"}}]
["Comon4",null,null,{"$f":"MATCH(A14,List_A!$A$1:$A$17,0)","v":14}]
["Only B11",null,null,{"$f":"MATCH(A15,List_A!$A$1:$A$17,0)","v":{"$error":"#N/A"}}]
["Only B12",null,null,{"$f":"MATCH(A16,List_A!$A$1:$A$17,0)","v":{"$error":"#N/A"}}]
["Only B13",null,null,{"$f":"MATCH(A17,List_A!$A$1:$A$17,0)","v":{"$error":"#N/A"}}]
["Only B14",null,null,{"$f":"MATCH(A18,List_A!$A$1:$A$17,0)","v":{"$error":"#N/A"}}]
["Only B15",null,null,{"$f":"MATCH(A19,List_A!$A$1:$A$17,0)","v":{"$error":"#N/A"}}]
["Only B16",null,null,{"$f":"MATCH(A20,List_A!$A$1:$A$17,0)","v":{"$error":"#N/A"}}]
["Only B17",null,null,{"$f":"MATCH(A21,List_A!$A$1:$A$17,0)","v":{"$error":"#N/A"}}]

{"sheet":"List_C","index":2,"n_rows":33,"n_cols":11,"rows_kept":33,"cut":false,"hidden":false,"merged":[]}
[null,null,"In A No In B",null,"In B nto in A",null,"ALL names",null,"NoT Common",null," Common"]
[null,null,"Only A1",null,"Only B1",null,"Only A1",null,"Only A1",null,"Only A3"]
[null,null,"Only A2",null,"Only B2",null,"Only A2",null,"Only A2",null,"Comon1"]
[null,null,"Only A4",null,"Only B3",null,"Only A3",null,"Only A4",null,"Comon2"]
[null,null,"Only A5",null,"Only B9",null,"Only A4",null,"Only A5",null,"Comon3"]
[null,null,"Only A6",null,"Only B10",null,"Only A5",null,"Only A6",null,"Only B7"]
[null,null,"Only A7",null,"Only B11",null,"Comon1",null,"Only A7",null,"Comon4"]
[null,null,"Only A9",null,"Only B12",null,"Comon2",null,"Only A9"]
[null,null,"Only A10",null,"Only B13",null,"Only A6",null,"Only A10"]
[null,null,"Only A11",null,"Only B14",null,"Only A7",null,"Only A11"]
[null,null,"Only A12",null,"Only B15",null,"Comon3",null,"Only A12"]
[null,null,"Only A13",null,"Only B16",null,"Only B7",null,"Only A13"]
[null,null,null,null,"Only B17",null,"Only A9",null,"Only B1"]
[null,null,null,null,null,null,"Only A10",null,"Only B2"]
[null,null,null,null,null,null,"Comon4",null,"Only B3"]
[null,null,null,null,null,null,"Only A11",null,"Only B4"]
[null,null,null,null,null,null,"Only A12",null,"Only B5"]
[null,null,null,null,null,null,"Only A13",null,"Only B8"]
[null,null,null,null,null,null,"Only B1",null,"Only B9"]
[null,null,null,null,null,null,"Only B2",null,"Only B10"]
[null,null,null,null,null,null,"Only B3",null,"Only B11"]
[null,null,null,null,null,null,"Only B4",null,"Only B12"]
[null,null,null,null,null,null,"Only B5",null,"Only B13"]
[null,null,null,null,null,null,"Only B8",null,"Only B14"]
[null,null,null,null,null,null,"Only B9",null,"Only B15"]
[null,null,null,null,null,null,"Only B10",null,"Only B16"]
[null,null,null,null,null,null,"Only B11",null,"Only B17"]
[null,null,null,null,null,null,"Only B12"]
[null,null,null,null,null,null,"Only B13"]
[null,null,null,null,null,null,"Only B14"]
[null,null,null,null,null,null,"Only B15"]
[null,null,null,null,null,null,"Only B16"]
[null,null,null,null,null,null,"Only B17"]